bitfinex-derivatives/quotes_ETHF0:USTF0_20251203
["timestamp","ask_amount","ask_price","bid_price","bid_amount"]
[1764731124895,4.1577,3023.8,3023.7,9.61552503]
[1764731125095,4.1577,3023.8,3023.7,9.3986]
[1764731125495,4.16100917,3023.8,3023.7,9.40194202]
[1764731125903,0.00330917,3023.8,3023.7,11.34614202]
[1764731127103,0.00330917,3023.8,3023.7,11.51147202]
[1764731127996,2.35500917,3023.8,3023.7,4.08714202]
[1764731128196,4.16100917,3023.8,3023.7,2.14294202]
[1764731128905,4.16100917,3023.8,3023.7,0.00334202]
[1764731129096,4.16100917,3023.8,3023.1,3.2078]
[1764731129300,2.3517,3023.2,3023.1,7.2916]
[1764731129502,4.1577,3023.2,3023.1,5.3474]
[1764731129702,4.1577,3023.2,3022.6,3.2078]
[1764731129898,2.3517,3023.2,3023.1,2.1396]
[1764731130090,4.1577,3023.2,3022.6,3.2078]
[1764731130295,4.1577,3023.2,3023.1,2.14249695]
[1764731130499,2.3517,3023.2,3023.1,4.08669695]
[1764731131005,3.2078,3023.6,3023.5,5.2736]
[1764731131303,7.3655,3023.6,3023.1,0.16825695]
[1764731131506,7.3655,3023.6,3023.5,4.0838]
[1764731131715,0.00330917,3023.8,3023.7,4.0838]
[1764731132006,2.35500917,3023.8,3023.7,2.1396]
[1764731132196,4.16100917,3023.8,3023.7,2.1396]
[1764731133000,4.16100917,3023.8,3023.2,3.37315]
[1764731134607,5.74939661,3023.8,3023.2,3.37315]
[1764731136204,0.00495278,3024.1,3024.0,6.0201]
[1764731136507,0.00495278,3024.1,3024.0,4.6433]
[1764731136806,0.00495278,3024.1,3024.0,6.0201]
[1764731137307,0.00760173,3024.1,3024.0,6.0201]
[1764731138210,0.00760173,3024.1,3024.0,6.18541]
[1764731140610,2.31590173,3024.1,3024.0,4.80861]
[1764731140804,0.00760173,3024.1,3024.0,4.80861]
[1764731141208,2.31590173,3024.1,3024.0,4.80861]
[1764731141516,4.53830173,3024.1,3024.0,2.45531]
[1764731141810,4.53830173,3024.1,3024.0,2.29]
[1764731142004,4.53830173,3024.1,3023.7,3.2078]
[1764731142203,2.3083,3023.8,3023.7,4.6433]
[1764731142408,0.00760173,3024.1,3024.0,6.0201]
[1764731145806,0.00760173,3024.1,3024.0,6.18541]
[1764731147911,0.00760173,3024.1,3024.0,9.39321]
[1764731150309,3.2078,3024.8,3024.0,9.39321]
[1764731150310,7.7385,3024.8,3024.7,2.29]
[1764731150506,7.7385,3024.8,3024.7,4.6433]
[1764731151217,7.741131,3024.8,3024.7,4.6433]
[1764731151613,3.210431,3024.8,3024.7,4.6433]
[1764731152121,0.00496114,3025.1,3024.5,14.6028]
[1764731152122,0.00496114,3025.1,3025.0,6.0201]
[1764731153116,0.00847688,3025.1,3025.0,6.0201]
[1764731154121,7.7385,3025.7,3025.6,2.29]
[1764731154320,7.7385,3025.7,3025.6,4.6433]
[1764731154521,7.7385,3025.7,3025.0,1.54205]
[1764731155215,7.74581179,3025.7,3025.0,1.54554978]
[1764731156310,3.2078,3025.5,3025.0,1.54554978]
[1764731156516,7.7385,3025.5,3025.4,2.29]
[1764731157321,9.0297,3025.5,3025.4,2.29]
[1764731158719,9.0297,3025.5,3025.0,1.54554978]
[1764731158919,2.3083,3025.1,3025.0,6.18884978]
[1764731159122,4.499,3025.5,3025.0,6.18884978]
[1764731159630,2.3083,3025.1,3025.0,6.18884978]
[1764731159838,10.61808744,3025.5,3025.4,2.29]
[1764731160028,4.499,3025.5,3025.0,6.18884978]
[1764731160334,4.5307,3025.1,3025.0,2.45874978]
[1764731160835,4.5307,3025.1,3025.0,4.81204978]
[1764731161035,2.3083,3025.1,3025.0,6.18884978]
[1764731161237,6.08738744,3025.5,3025.0,6.18884978]
[1764731161534,4.5307,3025.1,3025.0,6.18884978]
[1764731162032,9.0297,3025.5,3025.4,2.29]
[1764731162335,7.7385,3025.5,3025.4,4.6433]
[1764731162529,5.5161,3025.5,3025.4,4.6433]
[1764731162731,7.7385,3025.5,3025.4,4.6433]
[1764731163331,2.0749,3025.1,3025.0,5.78409978]
[1764731164137,4.3687,3025.1,3025.0,4.40729978]
[1764731164330,4.3687,3025.1,3025.0,0.00349978]
[1764731165039,4.3687,3025.1,3025.0,2.03389978]
[1764731165231,4.3687,3025.1,3025.0,0.00349978]
[1764731165431,4.3687,3025.1,3025.0,2.03389978]
[1764731165632,4.3687,3025.1,3025.0,4.40729978]
[1764731165828,8.9105,3025.5,3025.4,4.4038]
[1764731166029,7.5765,3025.5,3025.4,4.4038]
[1764731166639,5.2827,3025.5,3025.4,4.4038]
[1764731167240,7.5765,3025.5,3025.4,4.4038]
[1764731167440,5.2827,3025.5,3025.4,4.4038]
[1764731167639,3.2078,3025.5,3025.4,4.4038]
[1764731167836,4.3687,3025.1,3025.0,0.00349978]
[1764731168037,4.3687,3025.1,3024.4,4.40876114]
[1764731168038,4.3687,3024.5,3024.4,4.40876114]
[1764731168238,7.5765,3024.5,3024.4,4.40876114]
[1764731168434,2.0749,3024.5,3024.4,4.40876114]
[1764731169142,2.0749,3024.5,3024.4,4.41173074]
[1764731169335,4.3687,3024.5,3024.4,4.41173074]
[1764731170644,2.0749,3024.5,3024.4,4.41173074]
[1764731171340,4.3687,3023.9,3023.8,1.77118924]
[1764731171535,2.0749,3023.7,3023.6,4.4038]
[1764731171843,4.3687,3023.9,3023.8,4.4038]
[1764731172236,4.3687,3023.9,3023.8,2.0304]
[1764731172436,4.3687,3023.9,3023.8,2.03391496]
[1764731172737,4.3687,3023.9,3023.8,4.40731496]
[1764731173539,5.95708744,3024.1,3024.0,4.4038]
[1764731173944,5.95708744,3024.1,3024.0,2.0304]
[1764731174134,0.00496114,3024.2,3024.0,4.4038]
[1764731174449,0.00496114,3024.2,3024.1,4.4038]
[1764731177345,2.07986114,3024.2,3024.1,4.4038]
[1764731177542,0.00496114,3024.2,3024.1,4.4038]
[1764731177744,2.07986114,3024.2,3024.1,4.4038]
[1764731179353,0.00496114,3024.2,3024.1,4.4038]
[1764731181052,3.2078,3024.3,3024.1,4.4038]
[1764731181356,3.2078,3024.3,3024.2,4.4038]
[1764731182151,9.16488744,3024.3,3024.2,2.0304]
[1764731182356,2.2938,3024.1,3024.0,4.4038]
[1764731182554,4.3687,3024.1,3024.0,4.4038]
[1764731182749,2.0749,3024.1,3024.0,4.4038]
[1764731183058,5.2827,3024.3,3024.2,4.4038]
[1764731183254,3.2078,3024.3,3024.2,4.4038]
[1764731184355,5.2827,3024.3,3024.2,4.4038]
[1764731184656,7.5765,3024.3,3024.2,4.4038]
[1764731185053,3.2078,3024.3,3024.2,4.4038]
[1764731185957,5.2827,3024.3,3024.2,4.4038]
[1764731186158,7.5765,3024.3,3024.2,4.4038]
[1764731186554,9.16488744,3024.3,3024.2,2.0304]
[1764731187057,3.2078,3024.3,3024.2,4.4038]
[1764731188555,3.2078,3024.3,3024.2,4.5691]
[1764731190953,5.2827,3024.3,3024.2,4.5691]
[1764731191161,7.5765,3024.3,3024.2,4.5691]
[1764731191458,3.2078,3024.3,3024.2,4.5691]
[1764731192351,7.5765,3024.3,3024.2,4.5691]
[1764731192657,5.2827,3024.3,3024.2,4.4038]
[1764731193449,7.5765,3024.3,3024.2,4.4038]
[1764731194760,5.2827,3024.3,3024.2,4.4038]
[1764731196149,7.3204,3024.3,3024.2,4.4038]
[1764731196456,7.3204,3024.3,3023.7,3.2078]
[1764731196457,3.6828,3023.2,3023.1,2.34347811]
[1764731196658,3.6828,3023.2,3022.4,3.2078]
[1764731196659,1.7811,3022.6,3022.5,1.0917]
[1764731196854,3.6828,3022.4,3022.3,12.405]
[1764731197061,1.7811,3022.1,3022.0,4.752]
[1764731197357,0.00372465,3022.1,3022.0,17.97114477]
[1764731197552,0.00372465,3022.1,3022.0,4.75514477]
[1764731197758,0.00372465,3022.1,3022.0,17.97114477]
[1764731198658,0.00496114,3022.4,3022.3,3.6603]
[1764731198965,0.00496114,3022.4,3022.3,1.8492]
[1764731198966,3.68776114,3022.4,3022.3,1.8492]
[1764731199358,1.7811,3022.1,3022.0,4.75514477]
[1764731199856,1.78460848,3022.1,3022.0,10.45214477]
[1764731200158,5.43888725,3022.1,3022.0,0.00314477]
[1764731200366,3.6828,3021.8,3021.7,0.16165793]
[1764731200654,3.6828,3021.8,3021.0,1.0917]
[1764731200655,0.553,3022.0,3021.0,4.752]
[1764731200861,3.2078,3021.6,3021.1,2.331]
[1764731201458,3.2078,3021.6,3021.1,2.33380236]
[1764731201760,3.2078,3021.6,3021.5,4.752]
[1764731201964,0.00350848,3022.1,3022.0,1.8111]
[1764731202155,3.68630848,3022.1,3022.0,2.9409]
[1764731202356,0.00350848,3022.1,3022.0,4.752]
[1764731203270,1.78460848,3022.1,3022.0,10.538]
[1764731203463,3.68630848,3022.1,3022.0,16.1629]
[1764731203969,0.00350848,3022.1,3022.0,4.752]
[1764731204164,1.78460848,3022.1,3022.0,17.975]
[1764731204466,3.68630848,3022.1,3022.0,13.222]
[1764731204766,3.68630848,3022.1,3021.7,3.2078]
[1764731204966,3.68630848,3022.1,3021.8,3.387]
[1764731205367,1.7811,3021.9,3021.8,7.0473]
[1764731205770,0.00350848,3022.1,3021.8,7.0473]
[1764731206364,0.00350848,3022.1,3022.0,4.752]
[1764731209462,3.08148634,3022.4,3022.3,3.6603]
[1764731209672,6.8906,3022.9,3022.8,1.8492]
[1764731210071,6.8906,3022.9,3022.5,1.0917]
[1764731210566,6.89430547,3022.9,3022.5,1.0917]
[1764731210956,5.11320547,3022.9,3022.6,11.405]
[1764731211162,1.7811,3022.7,3022.6,13.2542]
[1764731211558,3.6828,3022.7,3022.6,13.2542]
[1764731211766,6.89430547,3022.9,3022.8,1.8492]
[1764731211964,3.21150547,3022.9,3022.8,3.6603]
[1764731212171,0.00370547,3022.9,3022.8,3.6603]
[1764731212370,0.00370547,3022.9,3022.8,3.82567]
[1764731212570,0.00370547,3022.9,3022.6,11.405]
[1764731212571,1.75257877,3023.9,3023.7,1.8492]
[1764731212771,3.6828,3023.8,3023.7,5.057]
[1764731212971,3.6828,3023.8,3023.7,3.2078]
[1764731213574,3.68635321,3023.8,3023.7,3.21165001]
[1764731213874,0.00355321,3023.8,3023.7,6.87195001]
[1764731216477,0.00496114,3024.1,3023.8,0.16532]
[1764731216666,0.00496114,3024.1,3024.0,4.752]
[1764731216862,0.00496114,3024.1,3024.0,7.9598]
[1764731216863,1.78606114,3024.1,3024.0,7.9598]
[1764731217368,0.00496114,3024.1,3024.0,4.752]
[1764731217566,0.00773609,3024.1,3024.0,4.752]
[1764731217766,1.7811,3023.9,3023.8,14.1233]
[1764731218573,0.00773609,3024.1,3023.8,14.1233]
[1764731218574,1.78883609,3024.1,3024.0,1.8492]
[1764731218876,3.69053609,3024.1,3024.0,1.8492]
[1764731219172,3.69053609,3024.1,3024.0,2.9409]
[1764731219368,3.69053609,3024.1,3024.0,1.0917]
[1764731219566,3.69053609,3024.1,3023.8,10.463]
[1764731219567,1.7811,3023.9,3023.8,14.1233]
[1764731219776,1.7811,3023.9,3023.8,3.6603]
[1764731219967,3.6828,3023.8,3023.7,0.00385001]
[1764731220171,3.6828,3023.8,3023.7,1.85305001]
[1764731220366,3.69053609,3024.1,3024.0,2.9409]
[1764731220572,3.69053609,3024.1,3024.0,1.0917]
[1764731220968,0.00773609,3024.1,3024.0,4.752]
[1764731221278,0.00773609,3024.1,3023.7,0.00385001]
[1764731221279,3.6828,3023.8,3023.7,0.00385001]
[1764731222273,3.69053609,3024.1,3024.0,2.9409]
[1764731222474,1.7811,3023.8,3023.7,1.85305001]
[1764731222668,1.7811,3023.8,3023.7,3.66415001]
[1764731222869,3.6828,3023.8,3023.7,1.85305001]
[1764731223269,3.6828,3023.8,3023.7,3.66315001]
[1764731223475,1.7811,3023.8,3023.7,3.66315001]
[1764731224172,3.5496,3023.8,3023.7,1.85305001]
[1764731224568,3.5496,3023.8,3023.7,3.66315001]
[1764731224782,1.7811,3023.8,3023.7,3.66315001]
[1764731227370,2.1448,3024.0,3023.9,3.9752]
[1764731227576,2.15253609,3024.1,3024.0,5.1203]
[1764731228074,3.92103609,3024.1,3024.0,3.3102]
[1764731228274,2.1448,3023.8,3023.7,3.97905001]
[1764731229273,3.9133,3023.8,3023.7,7.18685001]
[1764731229875,2.1448,3023.8,3023.7,7.18685001]
[1764731230075,3.9133,3023.8,3023.7,7.18685001]
[1764731230280,2.1448,3023.8,3023.7,7.18685001]
[1764731230693,3.9133,3023.8,3023.7,7.18685001]
[1764731231380,2.1448,3023.8,3023.7,7.18685001]
[1764731231674,3.9133,3023.8,3023.7,7.18685001]
[1764731232981,2.1448,3023.8,3023.7,20.38285001]
[1764731234574,3.9133,3023.8,3023.7,20.38285001]
[1764731235573,2.1448,3023.8,3023.7,20.38285001]
[1764731236076,7.75257877,3023.8,3022.6,2.35765083]
[1764731236279,1.75257877,3022.7,3022.5,3.2568]
[1764731236778,4.96037877,3022.7,3022.6,2.1651]
[1764731236974,3.2078,3022.7,3022.6,3.9752]
[1764731237182,3.2078,3022.7,3022.6,3.97808773]
[1764731237371,3.2078,3022.7,3022.6,0.00288773]
[1764731239383,3.97444366,3022.7,3022.6,0.00288773]
[1764731246093,5.72702243,3022.7,3022.6,0.00288773]
[1764731247284,5.72702243,3022.7,3022.4,0.00496114]
[1764731247486,0.76664366,3022.6,3022.4,0.00496114]
[1764731247685,4.96037877,3022.7,3022.4,0.00496114]
[1764731247981,0.76469907,3022.6,3022.4,0.00496114]
[1764731248191,4.96037877,3022.7,3022.4,0.00901898]
[1764731248494,0.76478132,3022.6,3022.4,0.00901898]
[1764731248683,4.96037877,3022.7,3022.4,0.00901898]
[1764731248884,0.76478262,3022.6,3022.4,0.00901898]
[1764731249085,4.96037877,3022.7,3022.4,0.00901898]
[1764731249286,0.76468428,3022.6,3022.4,0.00901898]
[1764731249489,4.96037877,3022.7,3022.4,0.00901898]
[1764731249697,4.96037877,3022.7,3022.5,1.1451]
[1764731250286,4.96037877,3022.7,3022.5,3.3102]
[1764731250797,4.96037877,3022.7,3022.6,3.9752]
[1764731252098,4.96037877,3022.7,3022.5,1.1451]
[1764731252895,4.96037877,3022.7,3022.4,0.00901898]
[1764731253103,4.96037877,3022.7,3022.5,1.3224]
[1764731253399,4.96037877,3022.7,3022.4,0.00901898]
[1764731254386,4.96037877,3022.7,3022.5,1.3224]
[1764731254790,4.96037877,3022.7,3022.6,2.2208]
[1764731255303,4.96037877,3022.7,3022.5,1.3224]
[1764731256001,4.96037877,3022.7,3022.5,3.5706]
[1764731256502,4.7978218,3022.6,3022.5,3.5706]
[1764731257402,3.2078,3022.6,3022.5,5.9231]
[1764731258300,3.2078,3022.6,3022.5,1.3224]
[1764731259799,3.2078,3022.6,3022.5,3.5706]
[1764731260003,3.2078,3022.6,3022.5,5.9231]
[1764731260198,3.2078,3022.6,3022.5,1.3224]
[1764731260601,3.2078,3022.6,3022.5,3.5706]
[1764731261802,3.2078,3022.6,3022.4,0.00901898]
[1764731262004,1.5900218,3022.5,3022.4,0.00901898]
[1764731262404,1.5900218,3022.5,3022.4,4.60971898]
[1764731263502,1.5900218,3022.5,3022.4,2.25721898]
[1764731264104,1.5900218,3022.5,3022.4,4.60971898]
[1764731264308,2.35750852,3022.5,3022.4,4.60971898]
[1764731264609,2.35750852,3022.5,3022.4,2.25721898]
[1764731265310,2.35750852,3022.5,3022.4,4.60971898]
[1764731266008,2.35855223,3022.5,3022.4,4.60971898]
[1764731273713,2.35988011,3022.5,3022.4,4.60971898]
[1764731274414,2.69709189,3022.5,3022.4,4.60971898]
[1764731275213,5.90489189,3022.5,3022.4,4.60971898]
[1764731275511,4.9412751,3022.5,3022.4,4.60971898]
[1764731276506,5.90489189,3022.5,3022.4,2.25721898]
[1764731277213,5.90489189,3022.5,3022.4,4.60971898]
[1764731278312,4.9412751,3022.5,3022.4,4.60971898]
[1764731278813,5.90489189,3022.5,3022.4,4.60971898]
[1764731279513,4.9412751,3022.5,3022.4,4.60971898]
[1764731281221,5.90489189,3022.5,3022.4,2.25721898]
[1764731281421,8.79574226,3022.5,3022.0,5.7458]
[1764731281721,4.17141679,3022.1,3022.0,5.7458]
[1764731281922,4.9412751,3022.1,3022.0,5.7458]
[1764731282510,4.9412751,3022.1,3022.0,5.74921619]
[1764731283315,3.97765831,3022.1,3022.0,5.74921619]
[1764731283516,0.76985831,3022.1,3022.0,5.74921619]
[1764731284821,3.67399879,3022.4,3022.3,4.3436]
[1764731285016,2.08416114,3022.4,3022.3,4.3436]
[1764731285614,5.3812,3022.5,3022.4,4.3436]
[1764731285812,5.3812,3022.5,3022.4,17.5076]
[1764731286019,3.2078,3022.5,3022.4,17.5076]
[1764731286213,3.2078,3022.5,3022.4,4.3436]
[1764731286524,4.4347,3022.5,3022.4,4.3436]
[1764731286725,3.2078,3022.5,3022.4,4.3436]
[1764731287223,5.657,3022.5,3022.4,4.3436]
[1764731287824,4.4347,3022.5,3022.4,4.3436]
[1764731288411,3.2078,3022.5,3022.4,4.3436]
[1764731289415,4.4347,3022.5,3022.4,4.3436]
[1764731290421,3.2078,3022.5,3022.4,4.3436]
[1764731294822,2.19756114,3022.8,3022.7,4.3436]
[1764731295225,2.19756114,3022.8,3022.7,7.5514]
[1764731295416,2.1946734,3022.8,3022.7,7.5514]
[1764731296426,2.1946734,3022.8,3022.7,7.71678]
[1764731297323,3.2078,3023.5,3023.4,4.3436]
[1764731297718,6.0042126,3024.1,3024.0,4.3436]
[1764731297917,6.76861381,3024.1,3024.0,4.3436]
[1764731298726,4.4116,3023.8,3023.7,4.34856114]
[1764731298925,6.00143765,3023.8,3023.7,4.34856114]
[1764731300130,1.58983765,3023.8,3023.7,4.34856114]
[1764731301124,3.63803765,3023.8,3023.7,4.34856114]
[1764731301933,6.00143765,3023.8,3023.7,2.11426114]
[1764731302631,6.00143765,3023.8,3023.7,4.34856114]
[1764731304030,6.00143765,3023.8,3023.7,2.11426114]
[1764731304531,6.00143765,3023.8,3023.7,0.00496114]
[1764731305025,3.2078,3023.9,3023.8,4.3436]
[1764731305225,0.00277495,3024.1,3024.0,5.4887]
[1764731305429,0.00277495,3024.1,3024.0,8.6965]
[1764731305833,2.05097495,3024.1,3024.0,8.6965]
[1764731306130,0.00277495,3024.1,3024.0,8.6965]
[1764731306320,0.96508641,3024.1,3024.0,8.6965]
[1764731307928,5.37668641,3024.1,3024.0,7.5514]
[1764731308129,6.33899787,3024.1,3024.0,7.5514]
[1764731308329,6.00302745,3024.1,3024.0,3.2078]
[1764731308529,4.4116,3023.8,3023.7,3.21276114]
[1764731308830,6.0002525,3023.8,3023.7,3.21276114]
[1764731309033,6.0002525,3023.8,3023.7,5.32206114]
[1764731309619,6.0002525,3023.8,3023.7,3.21276114]
[1764731310830,6.0002525,3023.8,3023.7,5.32206114]
[1764731311629,0.00277495,3024.1,3024.0,5.4887]
[1764731311830,4.41437495,3024.1,3024.0,2.1093]
[1764731312430,4.41437495,3024.1,3024.0,4.3436]
[1764731313426,4.41437495,3024.1,3024.0,2.1093]
[1764731313826,0.00277495,3024.1,3024.0,5.386]
[1764731314229,2.6173,3023.8,3023.7,5.27926114]
[1764731314430,1.2739,3024.0,3023.9,4.5281]
[1764731314431,5.9872,3024.0,3023.9,4.5281]
[1764731314628,2.6173,3024.0,3023.9,4.5281]
[1764731314935,4.7133,3024.0,3023.9,4.5281]
[1764731315336,2.6173,3024.0,3023.9,4.5281]
[1764731316538,6.7022,3024.0,3023.9,4.5281]
[1764731316736,2.6173,3024.0,3023.9,4.5281]
[1764731316937,6.7022,3024.0,3023.9,4.5281]
[1764731317337,0.00277495,3024.1,3024.0,6.5418]
[1764731318038,2.66087495,3024.1,3024.0,19.7148]
[1764731318228,0.00277495,3024.1,3024.0,19.7148]
[1764731319332,2.66087495,3024.1,3024.0,19.7148]
[1764731319731,0.00277495,3024.1,3024.0,19.7148]
[1764731320533,2.66087495,3024.1,3024.0,19.7148]
[1764731320746,0.00277495,3024.1,3024.0,19.7148]
[1764731324536,0.00277495,3024.1,3023.5,1.1451]
[1764731324537,1.4962,3024.0,3023.4,5.2612]
[1764731324727,8.4546,3023.8,3023.7,5.2612]
[1764731324927,9.21714432,3023.8,3023.7,5.2612]
[1764731325128,50.01714432,3023.8,3023.7,5.2612]
[1764731325342,3.97034432,3023.8,3023.7,5.2612]
[1764731325544,3.2078,3023.8,3023.7,5.2612]
[1764731332342,8.4546,3023.8,3023.4,0.17030114]
[1764731332549,8.4546,3023.8,3023.7,2.6315]
[1764731332848,8.4546,3023.8,3023.7,5.2612]
[1764731333541,2.6581,3023.5,3023.4,2.63646114]
[1764731333847,6.20929341,3023.5,3023.4,5.26616114]
[1764731335144,7.70549341,3023.5,3023.4,2.63646114]
[1764731338050,7.70549341,3023.5,3023.4,5.26616114]
[1764731338549,7.70549341,3023.5,3023.4,2.63646114]
[1764731339550,3.62059341,3023.5,3023.4,5.26616114]
[1764731340052,6.20929341,3023.5,3023.4,5.26616114]
[1764731340249,7.70549341,3023.5,3023.4,5.26616114]
[1764731340653,3.62059341,3023.5,3023.4,5.26616114]
[1764731341155,6.20929341,3023.5,3023.4,5.26616114]
[1764731341651,7.70549341,3023.5,3023.4,5.26616114]
[1764731341848,7.70549341,3023.5,3023.4,2.63646114]
[1764731342151,7.70549341,3023.5,3022.8,3.37317]
[1764731342152,5.2468,3022.9,3022.8,5.8393]
[1764731342351,6.20929341,3022.9,3022.8,5.8393]
[1764731342548,6.20929341,3022.9,3022.8,8.469]
[1764731342949,6.20929341,3022.9,3022.8,5.8393]
[1764731343145,6.20929341,3022.9,3022.8,2.6315]
[1764731343345,6.20929341,3022.9,3022.6,13.171]
[1764731343346,5.0057,3022.7,3022.6,4.9227]
[1764731343552,5.96819341,3022.7,3022.6,4.9227]
[1764731345057,3.2078,3023.1,3023.0,6.4874]
[1764731345742,3.2078,3023.5,3023.0,6.4874]
[1764731346058,5.5539,3023.5,3023.4,4.9227]
[1764731346253,3.2078,3023.5,3023.4,4.9227]
[1764731346654,3.2078,3024.0,3023.9,4.9227]
[1764731346954,6.51639341,3024.0,3023.9,4.9227]
[1764731347348,4.17029341,3024.0,3023.9,4.9227]
[1764731347752,3.2078,3024.0,3023.9,4.9227]
[1764731347950,4.17029341,3024.0,3023.9,4.9227]
[1764731348350,6.46425988,3024.0,3023.5,6.67283]
[1764731348743,11.46995988,3024.0,3023.9,2.4339]
[1764731348960,11.46995988,3024.0,3023.9,4.9227]
[1764731349753,3.2078,3024.0,3023.9,4.9227]
[1764731349952,5.5539,3024.0,3023.9,4.9227]
[1764731350251,8.2135,3024.0,3023.9,4.9227]
[1764731350451,9.7165,3024.0,3023.9,4.9227]
[1764731351162,9.7165,3024.0,3023.9,2.4339]
[1764731351962,9.7165,3024.0,3023.9,4.9227]
[1764731353259,5.5539,3024.0,3023.9,4.9227]
[1764731354858,3.21276114,3024.4,3024.0,4.9227]
[1764731355159,3.21276114,3024.4,3024.0,6.5075]
[1764731355361,0.00496114,3024.4,3024.0,6.5075]
[1764731357165,0.00496114,3024.4,3024.3,4.9227]
[1764731358062,0.00745398,3024.4,3024.3,4.926222]
[1764731359771,8.22095398,3024.4,3024.3,15.605422]
[1764731359965,5.01315398,3024.4,3024.3,15.605422]
[1764731360358,5.01315398,3024.4,3024.3,18.094222]
[1764731362064,5.01315398,3024.4,3024.3,18.093222]
[1764731363171,2.35355398,3024.4,3024.3,18.093222]
[1764731363370,0.00745398,3024.4,3024.3,18.093222]
[1764731364085,0.00745398,3024.4,3024.3,18.258512]
[1764731364475,6.5087,3025.0,3024.9,2.4339]
[1764731364870,6.5087,3025.0,3024.9,4.9227]
[1764731365174,44.0078,3025.3,3025.2,2.4339]
[1764731365374,44.76819778,3025.3,3025.2,2.4339]
[1764731365572,5.0057,3024.6,3024.5,14.1897]
[1764731366075,8.2135,3024.9,3024.8,2.4339]
[1764731366775,5.0057,3024.6,3024.5,14.1897]
[1764731367671,5.5539,3024.9,3024.8,4.9227]
[1764731367977,8.2135,3024.9,3024.8,2.4339]
[1764731368170,5.0057,3024.6,3024.5,14.1897]
[1764731368979,8.2135,3024.9,3024.8,4.9227]
[1764731369474,5.0057,3024.6,3024.5,14.6277]
[1764731370171,2.3461,3024.6,3024.5,14.6277]
[1764731370374,5.96781103,3024.6,3024.5,14.6277]
[1764731372480,5.96781103,3024.6,3024.5,18.0867]
[1764731373986,4.5413,3024.4,3024.3,4.569922]
[1764731374284,7.7491,3024.4,3024.3,4.569922]
[1764731374990,7.7491,3024.4,3024.3,0.003522]
[1764731375192,8.5106975,3024.4,3024.3,0.003522]
[1764731375592,8.5106975,3024.4,3024.3,2.208922]
[1764731376893,8.5106975,3024.4,3024.3,0.003522]
[1764731378487,9.47311501,3024.4,3024.3,0.003522]
[1764731380190,9.47311501,3024.4,3024.3,4.048522]
[1764731380387,3.9693975,3024.4,3024.3,4.048522]
[1764731380587,3.2078,3024.4,3024.3,4.048522]
[1764731380893,7.5124,3024.4,3024.3,2.030622]
[1764731382197,7.5124,3024.4,3024.3,0.003522]
[1764731382600,7.5124,3024.4,3024.3,2.030622]
[1764731382795,7.5124,3024.4,3024.3,0.003522]
[1764731383191,8.27410209,3024.4,3024.3,4.048522]
[1764731383399,8.27410209,3024.4,3024.3,0.003522]
[1764731383793,8.27410209,3024.4,3024.3,2.030622]
[1764731385202,8.27410209,3024.4,3024.3,4.048522]
[1764731385702,9.2365196,3024.4,3024.3,4.048522]
[1764731385999,9.2365196,3024.4,3024.3,2.030622]
[1764731388104,9.2365196,3024.4,3024.3,4.048522]
[1764731388397,3.2078,3024.4,3024.3,4.048522]
[1764731389592,5.26701751,3024.6,3024.5,4.045]
[1764731389802,6.02946042,3024.6,3024.5,4.045]
[1764731390301,5.26701751,3024.6,3024.5,4.045]
[1764731391304,3.11401751,3024.6,3024.5,4.045]
[1764731391500,0.96241751,3024.6,3024.5,4.7543]
[1764731393505,3.11401751,3024.6,3024.5,4.7543]
[1764731394012,0.96241751,3024.6,3024.5,4.7543]
[1764731395306,6.32181751,3024.8,3024.7,4.045]
[1764731395508,9.23748423,3024.8,3024.7,2.0271]
[1764731396211,9.23748423,3024.8,3024.7,4.045]
[1764731396507,9.23748423,3024.8,3024.7,2.0271]
[1764731398206,9.23748423,3024.8,3024.7,4.045]
[1764731399609,7.08448423,3024.8,3024.7,4.045]
[1764731401311,8.47481751,3024.8,3024.7,4.045]
[1764731401514,9.23747951,3024.8,3024.7,4.045]
[1764731401805,4.93287951,3024.8,3024.4,4.045]
[1764731402111,0.96241751,3024.5,3024.4,4.045]
[1764731402315,6.46871751,3024.5,3024.4,4.045]
[1764731403611,3.11401751,3024.5,3024.4,4.045]
[1764731404509,5.20451751,3024.5,3024.4,4.045]
[1764731404710,4.0172,3024.4,3024.3,1.913822]
[1764731405001,7.225,3024.4,3024.3,0.003522]
[1764731406204,7.98758949,3024.4,3024.3,0.003522]
[1764731406914,7.98758949,3024.4,3024.3,3.981822]
[1764731407309,7.98758949,3024.4,3024.3,1.913822]
[1764731407506,7.98758949,3024.4,3024.3,3.981822]
[1764731408108,5.89708949,3024.4,3024.3,3.981822]
[1764731408414,7.98758949,3024.4,3024.3,3.981822]
[1764731408800,7.98758949,3024.4,3024.3,1.913822]
[1764731410006,7.98758949,3024.4,3024.3,0.003522]
[1764731410413,8.950007,3024.4,3024.3,0.003522]
[1764731410705,8.950007,3024.4,3024.0,0.00496114]
[1764731410706,5.94203502,3024.1,3024.0,0.00496114]
[1764731410911,6.70462451,3024.1,3024.0,0.00496114]
[1764731411107,6.70462451,3024.1,3023.3,5.1181]
[1764731411108,4.97961751,3023.4,3023.3,5.1181]
[1764731411608,4.97961751,3023.4,3023.3,5.12227751]
[1764731411806,4.0172,3023.4,3023.3,7.19027751]
[1764731412007,1.9267,3023.4,3023.3,7.19027751]
[1764731412217,4.0172,3023.4,3023.3,7.19027751]
[1764731412403,0.00496114,3023.7,3023.6,3.9783]
[1764731412806,4.0172,3023.5,3023.4,4.14364]
[1764731413010,5.2423,3023.5,3023.4,17.29964]
[1764731413210,5.2423,3023.5,3023.4,4.14364]
[1764731413514,1.9267,3023.5,3023.4,17.29964]
[1764731413807,2.18751751,3023.5,3023.4,13.156]
[1764731414014,6.20471751,3023.5,3023.4,13.156]
[1764731415117,2.88911751,3023.5,3023.4,17.1343]
[1764731415315,4.02216114,3023.7,3023.6,1.9103]
[1764731415819,5.2423,3023.5,3023.4,13.156]
[1764731416112,6.20471751,3023.5,3023.4,13.156]
[1764731416304,6.20471751,3023.5,3023.4,15.0663]